bitfinex-derivatives/quotes_ETHF0:USTF0_20210407
["timestamp","ask_amount","ask_price","bid_price","bid_amount"]
[1617839005778,30.0,1989.2,1989.0,2.90695]
[1617839007676,2.90695,1989.1,1989.0,2.90695]
[1617839008578,32.90695,1989.1,1989.0,2.90695]
[1617839009681,32.90695,1989.1,1988.8,16.04045]
[1617839011785,2.90695,1988.9,1988.8,16.04045]
[1617839011984,5.63555,1988.9,1988.8,16.04045]
[1617839012984,35.63555,1988.9,1988.8,16.04045]
[1617839013185,5.63555,1988.9,1988.8,16.04045]
[1617839016292,2.90695,1988.9,1988.8,16.04045]
[1617839027011,65.235,1989.0,1988.8,16.04045]
[1617839028009,2.90695,1989.3,1988.8,16.04045]
[1617839028509,2.90695,1989.3,1988.9,6.13]
[1617839030013,2.90695,1989.3,1989.2,2.90695]
[1617839033921,32.90695,1989.3,1989.2,2.90695]
[1617839034120,32.90695,1989.3,1988.8,13.1335]
[1617839034321,35.27215,1989.3,1988.8,13.1335]
[1617839036027,2.90695,1988.9,1988.8,13.1335]
[1617839036222,35.76605,1988.9,1988.8,13.1335]
[1617839038223,5.76605,1988.9,1988.8,13.1335]
[1617839038424,103.87425,1988.9,1988.8,13.1335]
[1617839039024,73.87425,1988.9,1988.8,13.1335]
[1617839041426,73.87425,1988.9,1988.8,15.8018]
[1617839043531,73.87425,1988.9,1988.8,13.1335]
[1617839044734,75.77255,1988.9,1988.8,13.1335]
[1617839046536,34.80525,1988.9,1988.8,13.1335]
[1617839053042,34.80525,1988.9,1988.5,13.6764]
[1617839053245,79.7007,1988.8,1988.5,13.6764]
[1617839053443,30.0,1988.7,1988.5,13.6764]
[1617839053846,32.0,1988.7,1988.5,13.6764]
[1617839054145,2.90695,1988.6,1988.5,13.6764]
[1617839054344,32.90695,1988.6,1988.5,13.6764]
[1617839058351,34.90695,1988.6,1988.5,13.6764]
[1617839059756,35.90985,1988.6,1988.5,13.6764]
[1617839060854,34.90695,1988.6,1988.5,13.6764]
[1617839062255,32.90695,1988.6,1988.5,13.6764]
[1617839063855,106.04505,1988.6,1988.5,13.6764]
[1617839067860,32.90695,1988.6,1988.5,16.1527]
[1617839068661,2.90695,1988.6,1988.5,16.1527]
[1617839069365,2.90695,1988.6,1988.5,77.4994]
[1617839069663,32.90695,1988.6,1988.5,77.4994]
[1617839071564,32.90695,1988.6,1988.5,16.1527]
[1617839071868,32.90695,1988.6,1988.5,13.6764]
[1617839073967,35.81315,1988.6,1988.5,13.6764]
[1617839074769,35.81315,1988.6,1987.6,2.90695]
[1617839075069,62.8497,1988.0,1987.6,2.90695]
[1617839075269,32.2244,1987.9,1987.6,2.90695]
[1617839076771,32.2244,1987.9,1987.4,80.2945]
[1617839077173,32.2244,1987.9,1987.6,2.90695]
[1617839079176,2.90695,1987.7,1987.6,2.90695]
[1617839079776,2.90695,1987.7,1987.4,13.1315]
[1617839081080,80.619,1987.5,1987.4,13.1315]
[1617839081279,83.52595,1987.5,1987.4,16.03845]
[1617839085184,83.52595,1987.5,1987.4,13.1315]
[1617839087190,80.56375,1987.5,1987.4,13.1315]
[1617839089391,80.56375,1987.5,1987.4,16.03845]
[1617839093908,83.05745,1987.5,1987.4,16.03845]
[1617839095716,35.40065,1987.5,1987.4,13.1315]
[1617839102231,32.90695,1987.5,1987.4,13.1315]
[1617839102430,2.90695,1987.5,1987.4,13.1315]
[1617839105132,2.90695,1987.5,1987.4,19.2615]
[1617839105731,2.16805,1987.5,1987.4,19.2615]
[1617839107535,2.90695,1987.7,1987.4,19.2615]
[1617839107939,0.02780682,1989.0,1987.4,19.2615]
[1617839108237,0.02780682,1989.0,1987.7,70.6033]
[1617839108639,0.02781863,1989.1,1987.8,6.03]
[1617839108840,30.02781863,1989.1,1987.8,6.03]
[1617839109040,67.2487,1989.2,1987.8,6.03]
[1617839109340,0.02783384,1989.4,1987.8,6.03]
[1617839109642,0.02783384,1989.4,1988.7,5.43425]
[1617839110242,0.02784004,1989.5,1988.7,5.43425]
[1617839110443,0.02784068,1989.6,1988.7,5.43425]
[1617839111642,2.90695,1988.8,1988.7,5.43425]
[1617839112042,2.90695,1988.8,1988.7,11.68425]
[1617839112242,0.02782139,1989.7,1988.7,11.68425]
[1617839112542,0.02781874,1989.8,1988.7,11.68425]
[1617839113541,0.02781874,1989.8,1989.7,2.90695]
[1617839114145,0.02782577,1989.9,1989.7,2.90695]
[1617839114644,0.02783382,1990.0,1989.7,2.90695]
[1617839115246,0.02786557,1989.8,1989.7,2.90695]
[1617839115554,2.90695,1989.8,1989.7,2.90695]
[1617839118855,0.02787388,1990.0,1989.7,2.90695]
[1617839119156,0.02788452,1990.2,1989.7,2.90695]
[1617839119454,0.02788452,1990.2,1990.1,78.7143]
[1617839119655,0.02790301,1990.4,1990.1,81.62125]
[1617839119854,0.02790301,1990.4,1990.1,87.82125]
[1617839120456,0.0279149,1990.6,1990.1,87.82125]
[1617839120757,0.02791751,1990.7,1990.1,87.82125]
[1617839120955,0.02791751,1990.7,1990.1,81.62125]
[1617839121157,0.02791566,1990.6,1990.1,81.62125]
[1617839121558,0.02791566,1990.6,1990.4,2.90695]
[1617839123660,2.90695,1990.6,1990.4,2.90695]
[1617839132172,2.90695,1990.6,1990.4,5.81885]
[1617839134173,2.90695,1990.6,1990.4,2.90695]
[1617839137776,30.0,1991.2,1990.1,76.1382]
[1617839138177,30.0,1991.2,1989.7,26.9912]
[1617839138381,84.0118,1990.5,1990.0,2.90695]
[1617839138579,86.2578,1990.5,1990.0,2.90695]
[1617839139482,86.2578,1990.5,1990.1,6.13]
[1617839140381,86.2578,1990.5,1990.4,2.90695]
[1617839142285,2.246,1990.5,1990.4,2.90695]
[1617839142485,5.15295,1990.5,1990.4,2.90695]
[1617839144186,2.90695,1990.5,1990.4,2.90695]
[1617839145288,2.90695,1990.5,1990.0,58.5175]
[1617839146088,2.90695,1990.5,1990.1,6.13]
[1617839146287,58.3507,1990.3,1989.7,26.9912]
[1617839146588,5.31635,1990.2,1990.1,2.90695]
[1617839148591,5.31635,1990.2,1989.9,2.90695]
[1617839148796,35.31635,1990.2,1989.9,2.90695]
[1617839149192,35.31635,1990.2,1989.7,26.9912]
[1617839149492,75.0917,1989.9,1989.7,26.9912]
[1617839150398,2.90695,1989.8,1989.7,26.9912]
[1617839150596,5.34475,1989.8,1989.7,26.9912]
[1617839155412,2.90695,1989.8,1989.7,26.9912]
[1617839157801,2.90695,1989.8,1989.7,29.0264]
[1617839158402,2.90695,1990.0,1989.7,29.0264]
[1617839158802,2.90695,1990.0,1989.7,35.2364]
[1617839160505,2.90695,1990.0,1989.9,2.90695]
[1617839160904,63.3374,1990.3,1989.9,2.90695]
[1617839161907,63.3374,1990.3,1989.7,26.9912]
[1617839162105,65.6674,1990.3,1989.7,26.9912]
[1617839162309,30.0,1990.2,1989.7,26.9912]
[1617839162607,4.94685,1989.8,1989.7,26.9912]
[1617839164509,2.90695,1989.8,1989.7,26.9912]
[1617839164709,70.93005,1989.8,1989.7,26.9912]
[1617839165715,73.23105,1989.8,1989.7,26.9912]
[1617839166515,103.23105,1989.8,1989.7,26.9912]
[1617839167318,36.21735,1989.8,1989.7,12.8817]
[1617839167514,45.20795,1989.8,1989.7,12.8817]
[1617839171519,42.301,1989.8,1989.7,12.8817]
[1617839172521,36.20055,1989.8,1989.7,12.8817]
[1617839173920,46.20055,1989.8,1989.7,12.8817]
[1617839177124,36.20055,1989.8,1989.7,12.8817]
[1617839178224,35.20795,1989.8,1989.7,12.8817]
[1617839180027,45.20795,1989.8,1989.7,12.8817]
[1617839181231,45.20795,1989.8,1989.7,12.6627]
[1617839182132,61.6683,1989.7,1987.9,12.8287]
[1617839182433,30.0,1989.6,1987.9,12.8287]
[1617839182632,2.0,1989.5,1988.3,2.90695]
[1617839182836,34.2667,1989.4,1988.3,2.90695]
[1617839183635,2.0,1989.2,1987.9,12.8287]
[1617839183836,2.0,1989.0,1987.9,12.8287]
[1617839184035,2.0,1988.8,1987.9,12.8287]
[1617839184234,30.0,1988.7,1987.9,12.8287]
[1617839184535,31.0112,1988.7,1987.9,12.8287]
[1617839184734,5.49475,1988.0,1987.9,12.8287]
[1617839190340,81.90335,1988.0,1987.9,12.8287]
[1617839191446,78.9964,1988.0,1987.9,12.8287]
[1617839192750,81.90335,1988.0,1987.9,12.8287]
[1617839200255,111.90335,1988.0,1987.4,2.90695]
[1617839200757,5.76315,1987.5,1987.2,2.90695]
[1617839201660,35.76315,1987.5,1987.2,2.90695]
[1617839202459,57.7185,1987.2,1986.9,13.1578]
[1617839202658,2.4685,1987.1,1986.9,13.1578]
[1617839202858,2.90695,1987.0,1986.9,13.1578]
[1617839208464,32.90695,1987.0,1984.7,30.0]
[1617839208764,30.0,1987.0,1986.3,2.90695]
[1617839208965,10.0,1986.9,1986.3,2.90695]
[1617839209165,30.0,1986.8,1986.3,2.90695]
[1617839209571,30.0,1987.0,1986.3,2.90695]
[1617839209770,62.7041,1986.6,1986.3,2.90695]
[1617839209970,65.3617,1986.6,1986.3,2.90695]
[1617839210372,65.3617,1986.6,1984.9,14.3772]
[1617839210871,65.3617,1986.6,1985.9,2.90695]
[1617839211372,65.3617,1986.6,1986.0,6.24]
[1617839212074,65.3617,1986.6,1985.9,2.90695]
[1617839212873,2.90695,1986.0,1985.9,2.90695]
[1617839213674,4.89485,1986.0,1985.9,2.90695]
[1617839216777,2.90695,1986.0,1985.9,2.90695]
[1617839219182,76.26325,1986.0,1985.9,2.90695]
[1617839219782,2.90695,1986.0,1985.9,2.90695]
[1617839219985,30.0,1986.8,1986.3,71.8607]
[1617839220183,40.0,1986.7,1986.3,71.8607]
[1617839220886,2.90695,1986.4,1986.3,71.8607]
[1617839221784,1.02308465,1988.7,1986.3,71.8607]
[1617839221985,2.0,1987.8,1986.3,71.8607]
[1617839222286,10.0,1987.4,1986.3,71.8607]
[1617839222587,40.0,1987.4,1986.3,71.8607]
[1617839222784,40.0,1987.4,1986.6,2.90695]
[1617839222986,40.0,1987.4,1986.6,5.93735]
[1617839223185,30.0,1987.4,1986.6,5.93735]
[1617839223386,30.0,1987.6,1986.6,5.93735]
[1617839223585,10.0,1987.8,1987.2,65.5841]
[1617839223785,10.0,1987.8,1987.2,68.2948]
[1617839223986,62.0347,1988.2,1987.2,68.2948]
[1617839224387,10.0,1988.1,1987.2,68.2948]
[1617839224589,30.0,1988.1,1987.2,68.2948]
[1617839224889,2.90695,1987.3,1987.2,71.20175]
[1617839225189,2.90695,1987.3,1987.2,5.61765]
[1617839225388,2.90695,1987.3,1987.2,2.90695]
[1617839228291,72.9166,1987.4,1987.2,2.90695]
[1617839228492,10.0,1988.2,1987.2,6.01635]
[1617839228691,30.0,1988.1,1987.5,61.4919]
[1617839228992,2.90695,1987.6,1987.5,64.39885]
[1617839230995,2.90695,1987.6,1987.5,2.90695]
[1617839237001,2.90695,1987.6,1987.5,9.10695]
[1617839238704,2.90695,1987.6,1987.5,72.85645]
[1617839243809,2.90695,1987.6,1987.5,10.11965]
[1617839244109,67.7048,1989.3,1988.2,65.5337]
[1617839244309,10.0,1989.6,1988.2,2.3707]
[1617839244510,30.0,1989.5,1988.7,85.8179]
[1617839244911,2.90695,1988.8,1988.7,85.8179]
[1617839245210,2.90695,1988.8,1988.7,2.9809]
[1617839245609,62.43685,1988.8,1988.7,2.9809]
[1617839246011,2.90695,1988.8,1988.7,2.9809]
[1617839246811,2.90695,1988.8,1988.7,60.8115]
[1617839249113,2.90695,1988.8,1988.7,2.9809]
[1617839249915,63.75555,1988.8,1988.2,2.3707]
[1617839250221,63.75555,1988.8,1988.0,2.90695]
[1617839251015,60.8486,1988.8,1988.1,6.32]
[1617839251216,60.8486,1988.8,1988.1,9.3484]
[1617839251516,60.8486,1988.8,1988.1,10.3689]
[1617839251714,60.8486,1988.8,1988.1,9.3484]
[1617839253016,2.90695,1988.2,1988.1,9.3484]
[1617839258325,2.90695,1988.2,1988.1,6.32]
[1617839261630,5.12625,1988.2,1988.0,2.90695]
[1617839269440,2.90695,1988.2,1988.0,2.90695]
[1617839273442,4.86085,1988.2,1988.0,2.90695]
[1617839276047,2.90695,1988.2,1988.0,2.90695]
[1617839277049,2.90695,1988.2,1988.0,6.00615]
[1617839283256,2.90695,1988.2,1988.1,6.31]
[1617839284156,2.90695,1988.2,1988.1,76.2511]
[1617839286057,2.90695,1988.2,1988.0,2.90695]
[1617839286258,70.2289,1988.1,1988.0,2.90695]
[1617839292563,5.95745,1988.2,1988.0,2.90695]
[1617839298872,68.365,1988.1,1988.0,2.90695]
[1617839302276,5.95745,1988.2,1988.0,2.90695]
[1617839302976,5.95745,1988.2,1988.0,65.93135]
[1617839304177,5.95745,1988.2,1988.0,2.90695]
[1617839305178,5.95745,1988.2,1987.8,2.90695]
[1617839305379,69.2023,1988.0,1987.8,2.90695]
[1617839307178,2.90695,1987.9,1987.8,2.90695]
[1617839312583,2.96328246,1987.9,1987.8,2.90695]
[1617839313184,2.96328246,1987.9,1987.8,74.27955]
[1617839316388,2.96328246,1987.9,1987.8,2.90695]
[1617839316687,89.67738246,1987.9,1987.8,2.90695]
[1617839318589,89.62105,1987.9,1987.8,2.90695]
[1617839320193,89.67749858,1987.9,1987.8,2.90695]
[1617839320392,87.42119858,1987.9,1987.8,2.90695]
[1617839320593,87.36475,1987.9,1987.8,2.90695]
[1617839321593,89.77165,1987.9,1987.8,2.90695]
[1617839325906,87.36475,1987.9,1987.8,2.90695]
[1617839329315,33.35933398,1987.9,1987.6,12.9909]
[1617839329515,42.90695,1987.9,1987.6,12.9909]
[1617839329916,0.45221793,1987.7,1987.6,12.9909]
[1617839330115,3.32421793,1987.7,1987.6,12.9909]
[1617839330315,33.32421793,1987.7,1987.6,12.9909]
[1617839330516,3.32421793,1987.7,1987.6,12.9909]
[1617839331516,6.23116793,1987.7,1987.6,12.9909]
[1617839332619,56.5628,1987.6,1985.8,0.9936]
[1617839332819,30.0,1987.5,1985.8,0.9936]
[1617839333021,30.0,1987.5,1985.9,12.8003]
[1617839333022,56.5998,1986.7,1985.9,12.8003]
[1617839333321,56.5998,1986.7,1986.6,2.90695]
[1617839334724,56.62803482,1986.7,1986.6,2.90695]
[1617839336226,56.65627064,1986.7,1986.6,2.90695]
[1617839336626,56.5998,1986.7,1986.6,2.90695]
[1617839337427,3.35857094,1986.8,1986.6,2.90695]
[1617839337428,2.90695,1986.8,1986.6,63.14745]
[1617839337628,0.02812899,1987.2,1986.6,65.13155]
[1617839337829,0.02812899,1987.2,1986.7,6.32]
[1617839338032,0.02814396,1987.4,1986.7,6.32]
[1617839338236,0.02814396,1987.4,1987.1,70.8983]
[1617839338433,0.05628791,1987.5,1987.1,70.8983]
[1617839338434,0.02815433,1987.5,1987.1,73.4455]
[1617839338737,0.02815749,1987.6,1987.1,73.4455]
[1617839339331,0.02815749,1987.6,1987.5,2.90695]
[1617839339532,0.02815749,1987.6,1987.5,5.01105]
[1617839339733,0.02817437,1987.7,1987.5,5.01105]
[1617839341840,0.02817437,1987.7,1987.6,6.27]
[1617839342040,2.90695,1987.9,1987.6,6.27]
[1617839343145,2.90695,1987.9,1987.8,69.0295]
[1617839343551,2.90695,1987.9,1987.8,78.18645]
[1617839345147,2.10975,1987.9,1987.8,78.18645]
[1617839345548,0.02821593,1988.3,1987.8,78.18645]
[1617839346048,0.02821001,1988.4,1987.8,78.18645]
[1617839347548,0.02821001,1988.4,1988.2,2.90695]
[1617839348150,0.02822557,1988.3,1988.2,2.90695]
[1617839348549,2.85022557,1988.3,1988.2,2.90695]
[1617839348951,2.87841673,1988.3,1988.2,2.90695]
[1617839349452,5.72895,1988.3,1988.2,2.90695]
[1617839350052,35.72895,1988.3,1988.2,2.90695]
[1617839351654,45.72895,1988.3,1988.2,2.90695]
[1617839352454,68.7624,1988.2,1987.2,83.1287]
[1617839352654,30.0,1988.1,1987.2,83.1287]
[1617839352856,30.9917,1988.1,1986.8,14.0977]
[1617839353157,0.02816637,1987.5,1986.8,14.0977]
[1617839353357,69.3324,1987.2,1986.8,14.0977]
[1617839353659,99.3324,1987.2,1986.8,14.0977]
[1617839354255,69.3324,1987.2,1986.8,14.0977]
[1617839355559,69.3324,1987.2,1987.1,2.90695]
[1617839357860,99.3324,1987.2,1987.1,2.90695]
[1617839358662,99.3324,1987.2,1986.8,14.0977]
[1617839358862,109.3324,1987.2,1986.8,14.0977]
[1617839359263,99.3324,1987.2,1986.8,14.0977]
[1617839359467,99.36056825,1987.2,1986.8,14.0977]
[1617839359670,102.26751825,1987.2,1987.1,2.90695]
[1617839359867,102.23935,1987.2,1987.1,2.90695]
[1617839360069,72.23935,1987.2,1987.1,2.90695]
[1617839362071,102.23935,1987.2,1987.1,2.90695]
[1617839362269,72.23935,1987.2,1987.1,2.90695]
[1617839362771,102.23935,1987.2,1987.1,2.90695]
[1617839364871,72.23935,1987.2,1987.1,2.90695]
[1617839367874,102.23935,1987.2,1987.1,2.90695]
[1617839370178,99.3324,1987.2,1987.1,2.90695]
[1617839371879,102.23935,1987.2,1987.1,2.90695]
[1617839390701,102.26750291,1987.2,1987.1,2.90695]
[1617839392103,102.23935,1987.2,1987.1,2.90695]
[1617839394314,102.2674981,1987.2,1987.1,2.90695]
[1617839394707,102.23935,1987.2,1987.1,2.90695]
[1617839395811,102.26749561,1987.2,1987.1,2.90695]
[1617839398313,32.93509561,1987.2,1987.1,2.90695]
[1617839399414,32.93509561,1987.2,1985.8,13.5973]
[1617839399615,66.9428,1987.1,1985.8,13.5973]
[1617839399815,30.0,1987.0,1985.8,13.5973]
[1617839400016,30.0281505,1987.0,1985.8,13.5973]
[1617839400316,0.02814897,1986.9,1985.8,13.5973]
[1617839400514,3.05354897,1986.9,1986.5,2.90695]
[1617839400818,30.0,1986.8,1986.5,2.90695]
[1617839401014,40.0,1986.8,1986.5,2.90695]
[1617839401415,30.0,1986.8,1986.5,2.90695]
[1617839401718,10.0,1986.7,1986.5,2.90695]
[1617839401916,30.0,1986.6,1986.5,2.90695]
[1617839402418,32.90695,1986.6,1986.5,2.90695]
[1617839402618,42.90695,1986.6,1986.5,2.90695]
[1617839404217,56.6908,1986.5,1985.8,13.5973]
[1617839404518,32.1429,1986.4,1986.1,2.90695]
[1617839404717,34.1429,1986.4,1986.1,2.90695]
[1617839404919,0.02808739,1986.3,1986.1,2.77485]
[1617839405120,10.02808739,1986.3,1986.1,2.77485]
[1617839405420,32.02806575,1986.2,1986.1,2.58285]
[1617839405619,32.05611959,1986.2,1986.1,2.58285]
[1617839405917,42.05611959,1986.2,1986.1,2.58285]
[1617839406320,42.05611959,1986.2,1984.4,27.7642]
[1617839406521,42.0,1986.2,1985.8,2.90695]
[1617839406724,32.0,1986.2,1985.8,2.90695]
[1617839406920,0.02803352,1986.0,1985.8,2.90695]
[1617839407220,3.05833352,1986.0,1985.8,2.90695]
[1617839407420,30.0,1985.9,1985.8,2.90695]
[1617839407728,40.0,1985.9,1984.4,27.7642]
[1617839407920,64.7991,1985.8,1984.4,27.7642]
[1617839408121,30.0,1985.7,1984.4,27.7642]
[1617839408523,2.90695,1985.1,1984.8,2.90695]
[1617839408722,30.0,1985.0,1984.8,2.90695]
[1617839409321,10.0,1984.9,1984.8,2.90695]
[1617839409520,40.0,1984.9,1984.8,2.90695]
[1617839409922,30.0,1984.9,1984.8,2.90695]
[1617839410322,40.0,1984.9,1984.8,2.90695]
[1617839410521,42.90695,1984.9,1984.8,2.90695]
[1617839412129,42.90695,1984.9,1984.8,68.32235]
[1617839412425,40.0,1984.9,1984.8,2.90695]
[1617839412625,10.0,1984.9,1984.8,2.90695]
[1617839413025,30.0,1985.4,1984.8,2.90695]
[1617839413227,82.3771,1984.8,1983.5,67.9089]
[1617839413431,30.0,1984.7,1983.1,14.1333]
[1617839413628,82.4187,1983.5,1983.1,28.1085]
[1617839413831,30.0,1983.4,1983.1,28.1085]
[1617839414127,40.0,1983.4,1983.1,13.9752]
[1617839414327,60.1521,1983.1,1983.0,7.829]
[1617839414526,95.63315,1983.1,1983.0,5.3744]
[1617839414828,95.63315,1983.1,1983.0,2.2651]
[1617839415028,35.48105,1983.1,1983.0,2.2651]
[1617839415327,32.5741,1983.1,1983.0,2.2651]
[1617839415528,42.5741,1983.1,1983.0,2.2651]
[1617839415927,43.5691,1983.1,1983.0,0.0001]
[1617839416628,46.47605,1983.1,1983.0,0.0001]
[1617839417127,48.47605,1983.1,1983.0,0.0001]
[1617839417332,46.47605,1983.1,1983.0,0.0001]
[1617839418435,46.47605,1983.1,1981.6,14.0621]
[1617839418630,48.47605,1983.1,1981.9,2.90695]
[1617839418835,2.0,1982.7,1981.9,2.90695]
[1617839419034,32.3264,1982.6,1981.9,2.90695]
[1617839420031,79.1282,1982.2,1981.9,2.90695]
[1617839420630,79.1282,1982.2,1982.1,2.90695]
[1617839421033,2.3264,1982.6,1982.1,2.90695]
[1617839421230,62.7057,1983.4,1982.1,5.07795]
[1617839421431,10.0,1982.5,1982.1,5.07795]
[1617839421832,92.7057,1983.4,1982.1,5.07795]
[1617839422030,10.0,1982.4,1982.1,5.07795]
[1617839422230,10.0,1982.4,1982.1,2.90695]
[1617839422431,2.8844,1982.7,1982.1,2.90695]
[1617839422633,2.90695,1982.4,1982.3,2.90695]
[1617839422930,2.8844,1982.7,1982.3,2.90695]
[1617839423134,10.0,1982.6,1982.3,2.90695]
[1617839424034,2.9355,1983.2,1982.3,2.90695]
[1617839424233,10.0,1982.5,1982.3,2.90695]
[1617839424437,77.8224,1982.4,1982.3,2.90695]
[1617839424835,80.3002,1982.4,1982.3,2.90695]
[1617839425032,90.3002,1982.4,1982.3,2.90695]
[1617839425340,80.3002,1982.4,1982.3,2.90695]
[1617839425533,90.3002,1982.4,1982.3,2.90695]
[1617839426334,12.4778,1982.4,1982.3,2.90695]
[1617839426738,15.38475,1982.4,1982.3,2.90695]
[1617839427335,15.38475,1982.4,1981.6,14.0621]
[1617839427534,45.38475,1982.4,1981.6,14.0621]
[1617839427735,35.38475,1982.4,1981.6,14.0621]
[1617839428135,10.0,1982.3,1981.6,14.0621]
[1617839428535,30.0,1982.2,1981.6,14.0621]
[1617839428736,30.0,1982.2,1981.7,2.90695]
[1617839429239,10.0,1982.1,1981.7,2.90695]
[1617839429439,33.0094,1982.0,1981.7,2.90695]
[1617839430237,10.0,1981.9,1981.7,2.90695]
[1617839430438,40.0,1981.9,1981.7,2.90695]
[1617839430638,2.90695,1981.8,1981.7,2.90695]
[1617839430838,32.90695,1981.8,1980.7,13.495]
[1617839431041,78.0765,1981.7,1980.5,82.6219]
[1617839431243,32.6862,1981.6,1980.5,82.6219]
[1617839431843,10.0,1981.5,1980.5,82.6219]
[1617839432042,30.0,1981.4,1980.5,82.6219]
[1617839432542,30.0,1981.4,1980.1,13.5495]
[1617839432742,10.0,1981.3,1980.1,13.5495]
[1617839432943,73.7297,1980.8,1980.1,13.5495]
[1617839433142,76.1006,1980.8,1980.1,13.5495]
[1617839433343,10.0,1980.7,1980.1,13.5495]
[1617839434643,10.0,1980.7,1980.6,2.90695]
[1617839435246,2.90695,1981.0,1980.6,2.90695]
[1617839435444,30.0,1981.6,1980.6,2.90695]
[1617839435645,10.0,1980.7,1980.6,2.90695]
[1617839435846,2.1111,1981.1,1980.6,2.90695]
[1617839436045,32.1111,1981.1,1980.6,2.90695]
[1617839436245,10.0,1980.7,1980.6,2.90695]
[1617839436448,12.8606,1980.7,1980.6,2.90695]
[1617839436646,5.76755,1980.7,1980.6,2.90695]
[1617839437053,15.76755,1980.7,1980.6,2.90695]
[1617839437251,5.76755,1980.7,1980.6,2.90695]
[1617839437653,12.90695,1980.7,1980.6,2.90695]
[1617839438051,30.0,1981.1,1980.6,2.90695]
[1617839438250,10.0,1980.7,1980.6,2.90695]
[1617839438653,2.90695,1981.0,1980.6,2.90695]
[1617839438852,10.0,1980.7,1980.6,2.90695]
[1617839439253,2.90695,1981.0,1980.6,2.90695]
[1617839439554,10.0,1980.7,1980.6,2.90695]
[1617839439952,32.90695,1981.0,1980.6,2.90695]
[1617839440253,10.0,1980.7,1980.6,2.90695]
[1617839440653,12.90695,1980.7,1980.4,2.90695]
[1617839440853,62.3174,1980.6,1980.4,2.90695]
[1617839441053,92.3174,1980.6,1980.4,2.90695]
[1617839441453,10.0,1980.5,1980.1,13.5495]
[1617839441657,30.0,1980.4,1980.1,13.5495]
[1617839441854,32.6189,1980.4,1980.1,13.5495]
[1617839442057,2.6189,1980.4,1980.1,13.5495]
[1617839442255,30.0,1980.3,1980.0,0.025]
[1617839442556,40.0,1980.3,1980.0,0.025]
[1617839442756,2.90695,1980.1,1980.0,0.025]
[1617839442954,32.90695,1980.1,1980.0,0.025]
[1617839443154,42.90695,1980.1,1980.0,0.025]
[1617839444560,12.90695,1980.1,1980.0,0.025]
[1617839445959,45.51585,1980.1,1980.0,0.025]
[1617839446760,45.51585,1980.1,1977.8,43.2869]
[1617839446761,61.5816,1979.5,1977.8,16.0]
[1617839446961,84.8847,1978.5,1977.8,16.0]
[1617839447162,32.2478,1978.4,1977.8,16.0]
[1617839447560,10.0,1978.3,1976.9,13.2677]
[1617839447762,84.9621,1977.0,1976.9,13.2677]
[1617839447961,117.4136,1977.0,1976.9,13.2677]
[1617839448164,32.4515,1977.0,1976.9,13.2677]
[1617839448462,42.4515,1977.0,1976.9,12.703]
[1617839448662,42.4515,1977.0,1976.9,11.8095]
[1617839448866,45.35845,1977.0,1976.9,11.4972]
[1617839449165,15.35845,1977.0,1976.6,2.90695]
[1617839449363,59.9518,1976.9,1976.6,2.90695]
[1617839449564,5.35845,1977.0,1975.0,0.025]
[1617839449962,10.0,1976.9,1975.0,0.025]
[1617839450463,10.0,1976.9,1975.1,6.22]
[1617839450762,10.0,1976.9,1976.3,2.90695]
[1617839451163,10.0,1976.9,1976.3,3.93115]
[1617839451363,10.0,1976.9,1976.3,2.90695]
[1617839452368,59.8941,1977.6,1976.3,2.90695]
[1617839452565,2.9964,1979.2,1976.3,2.90695]
[1617839452566,67.9243,1978.7,1976.3,5.05025]
[1617839452766,10.0,1977.6,1976.4,6.22]
[1617839453167,67.9243,1978.7,1976.4,6.22]
[1617839453367,10.0,1977.7,1976.4,6.22]
[1617839453668,67.9243,1978.7,1976.4,6.22]
[1617839454066,10.0,1978.0,1976.4,6.22]
[1617839454367,67.9243,1978.7,1976.4,6.22]
[1617839454666,10.0,1977.9,1976.4,6.22]
[1617839454868,10.0,1977.9,1977.8,2.90695]
[1617839455066,2.90695,1978.0,1977.8,2.90695]
[1617839455668,10.0,1977.9,1977.8,2.90695]
[1617839455867,12.6961,1977.9,1977.8,2.90695]
[1617839456268,12.6961,1977.9,1975.1,2.8417]
[1617839456467,12.6961,1977.9,1974.1,30.0]
[1617839456768,73.425,1977.8,1977.7,2.90695]
[1617839456967,83.425,1977.8,1977.7,2.90695]
[1617839457167,10.0,1977.8,1977.7,2.90695]
[1617839457471,73.3692,1978.8,1977.7,2.90695]
[1617839457871,10.0,1977.8,1977.7,2.90695]
[1617839458168,69.5537,1977.8,1977.7,2.90695]
[1617839458368,79.5537,1977.8,1977.7,2.90695]
[1617839461677,69.5537,1977.8,1977.7,2.90695]
[1617839462080,79.5537,1977.8,1977.7,2.90695]
[1617839462681,69.5537,1977.8,1977.7,2.90695]
[1617839462880,10.0,1978.2,1977.7,2.90695]
[1617839463082,10.0,1978.2,1977.7,5.06285]
[1617839463280,1.0012,1981.4,1977.7,11.32285]
[1617839463482,75.7257,1980.0,1977.7,76.35155]
[1617839463681,10.0,1978.8,1977.7,76.35155]
[1617839463881,30.0,1979.8,1977.7,76.35155]
[1617839464081,30.0,1979.9,1977.7,76.35155]
[1617839464281,10.0,1978.9,1977.7,76.35155]